Cogmind - Beta 15 @@@ ROGUE MODE // 2025.05.19 @ 09:36:27 Player: Fleshy Vegetable Bird Result: Destroyed by S-27 Virus with Autogun Performance ------------- Evolutions (4) 2000 Regions Visited (12) 2400 Robots Destroyed (194) 970 Value Destroyed (8142) 8142 Prototype IDs (7) 140 Alien Tech Used (0) 0 Bonus (4562) 4562 TOTAL SCORE: 18214 Bonus ------- High Alert Combat Kills 1439 Follower Combat Kills 1723 Entered Garrisons 400 Used RIF Installer 1000 Cogmind --------- Core Integrity 0/850 Matter 293/300 Energy 98/100 System Corruption 4% Temperature Cool (0) Movement Core (50) Location -6/Lower Caves Parts ------- > --- POWER (1) -------- (None) > --- PROPULSION (4) --- (None) > --- UTILITY (7) ------ Enhanced Optical Array Hacking Suite System Shield System Shield Relay Coupler [NC] (41) Relay Coupler [Sentry] (18) > --- WEAPON (3) ------- (None) > --- INVENTORY (5) ---- Improved Weapon Cycler Hypervelocity Gauss Rifle Heavy Rocket Launcher Improved Remote Datajack Power Sword Peak State ------------ > --- POWER ------------ Improved Deuterium Engine > --- PROPULSION ------- Improved Treads Improved Heavy Treads Armored Wheel > --- UTILITY ---------- Improved Cooling System Huge Storage Unit Improved Terrain Scan Processor Advanced Salvage Targeting Computer Improved Weapon Cycler Improved Remote Force Field Hacking Suite > --- WEAPON ----------- Long-range Proton Cannon Long-range Proton Cannon Improved Remote Datajack > --- INVENTORY -------- Light Angular Momentum Engine Improved Heavy Treads Cargo Storage Unit High-capacity Matter Pod Improved Sensor Array Improved Terrain Scanner Matter Filter Improved Weapon Cycler Insulated Plating Improved Hardlight Generator Advanced Shield Generator System Shield Relay Coupler [NC] Relay Coupler [NC] Relay Coupler [Grunt] Relay Coupler [Duelist] Relay Coupler [Hunter] Gatling Laser Long-range Proton Cannon Autogun Shock Bomb Launcher Remote Datajack Makeshift Spear [Rating: 79] Favorites ----------- Power Fission Core Engine Improved Ion Engine Power Core Fission Core Propulsion Wheel Treads Light Treads Wheel Wheel Utility Huge Storage Unit Device Improved Terrain Scanner Storage Huge Storage Unit Processor Improved Terrain Scan Processor Hackware Hacking Suite Protection Improved Light Armor Plating Weapon Heavy Assault Rifle Energy Gun Advanced Beam Rifle Energy Cannon Heavy Ion Cannon Ballistic Gun Heavy Assault Rifle Ballistic Cannon Gauss Cannon Launcher Improved Grenade Launcher Special Weapon Improved Remote Datajack Slashing Weapon Power Sword Piercing Weapon Makeshift Spear Special Melee Weapon Improved Datajack Build | -11 -10 -10 -8 -8 -8 -7 -7 -7 -6 -6 -6 -6 ------- Run | Yrd Mat Sub Mat Gar Mat Fac Low Low Fac Gar Fac Low Slots Evolved 8 | . . . 4 . . 2 . . 2 . . . Power . | . . . . . . . . . . . . . Propulsion 2 | . . . 1 . . 1 . . . . . . Utility 5 | . . . 2 . . 1 . . 2 . . . Weapon 1 | . . . 1 . . . . . . . . . Parts Attached 176 | 7 10 1 33 16 19 24 3 2 7 30 24 . Power 12 | 1 2 . 1 1 2 1 . . . 3 1 . Engine 8 | 1 2 . 1 1 . . . . . 2 1 . Core 4 | . . . . . 2 1 . . . 1 . . Reactor . | . . . . . . . . . . . . . Propulsion 42 | 2 2 1 13 4 5 7 . . . 4 4 . Treads 17 | . . . 4 4 2 1 . . . 3 3 . Leg . | . . . . . . . . . . . . . Wheel 25 | 2 2 1 9 . 3 6 . . . 1 1 . Hover . | . . . . . . . . . . . . . Flight . | . . . . . . . . . . . . . Utility 68 | 2 2 . 9 5 6 9 3 1 5 14 12 . Device 21 | 1 . . . 1 1 4 2 . 2 8 2 . Storage 4 | 1 1 . 1 . . . . . 1 . . . Processor 7 | . . . 1 . 1 . 1 . 1 2 1 . Hackware 21 | . . . 1 3 2 4 . . 1 3 7 . Protection 15 | . 1 . 6 1 2 1 . 1 . 1 2 . Artifact . | . . . . . . . . . . . . . Weapon 54 | 2 4 . 10 6 6 7 . 1 2 9 7 . Energy Gun 11 | 1 . . 2 2 2 1 . . . 3 . . Energy Cannon 6 | . . . . 1 . 2 . . . 2 1 . Ballistic Gun 19 | 1 3 . 7 . 2 1 . . . . 5 . Ballistic Cannon 6 | . . . . 2 . 1 . . . 3 . . Launcher 5 | . 1 . . 1 1 1 . 1 . . . . Special Weapon 2 | . . . . . . . . . 1 1 . . Impact Weapon . | . . . . . . . . . . . . . Slashing Weapon 2 | . . . . . 1 . . . . . 1 . Piercing Weapon 1 | . . . . . . . . . 1 . . . Special Melee Weapon 2 | . . . 1 . . 1 . . . . . . Unidentified Prototypes 4 | . . . 1 . 1 . . . . 1 1 . Parts Lost 59 | . 1 3 9 10 2 7 . . . 10 17 . Power 6 | . 1 1 . 1 1 1 . . . . 1 . Propulsion 18 | . . 1 3 4 . 2 . . . 4 4 . Utility 16 | . . . 3 2 1 3 . . . 2 5 . Weapon 19 | . . 1 3 3 . 1 . . . 4 7 . Highest Loss Streak 8 | . 1 3 3 4 1 5 . . . 4 8 . To Critical Strikes . | . . . . . . . . . . . . . Average Backups 21 | 1 10 14 22 23 23 22 23 24 22 22 21 5 Power 1 | . . . 1 1 1 1 1 1 1 1 1 . Propulsion 1 | . 1 3 4 . 1 1 1 1 1 1 . . Utility 13 | . 4 7 9 14 15 14 15 16 14 15 15 1 Weapon 3 | . 2 3 4 5 4 3 3 4 4 3 2 3 Tool/Special . | . . . . . . . . . . . . . Unused Backups 56 | 2 . . 6 9 8 5 3 . . 10 11 2 Power 8 | . . . 2 2 . 1 . . . . 3 . Propulsion 8 | 2 . . . 1 2 1 . . . 1 1 . Utility 29 | . . . 3 4 5 3 2 . . 5 7 . Weapon 10 | . . . 1 2 1 . 1 . . 3 . 2 Tool/Special 1 | . . . . . . . . . . 1 . . Average Slot Usage (%) 95 | . 99 91 97 97 99 97 100 100 99 91 87 40 Engine 4 | . 13 9 8 8 2 . . . . 4 . . Core 2 | . . . . . 6 6 7 7 6 1 5 . Treads 7 | . . . 4 14 16 8 . . . 5 12 . Wheel 17 | . 28 26 21 11 10 21 30 30 26 12 5 . Device 9 | . 10 14 2 5 3 11 15 14 11 14 10 . Storage 7 | . 14 14 9 9 9 7 7 7 6 6 5 . Processor 7 | . . . 4 9 3 . 6 7 13 12 10 6 Hackware 7 | . . . 2 . 8 10 7 7 7 10 16 33 Protection 6 | . 3 . 15 11 10 6 . . 5 1 . . Energy Gun 4 | . 2 . 5 6 7 4 . . . 5 . . Energy Cannon 5 | . . . . 5 3 5 15 13 6 4 7 . Ballistic Gun 7 | . 20 26 21 5 9 5 . . . . 5 . Ballistic Cannon 3 | . . . . 8 5 1 7 7 6 2 . . Launcher 1 | . 5 . . . . 4 . 1 2 . . . Peak Build Rating 79 | 9 12 13 34 37 38 46 44 44 52 79 79 21 Average Rating 43 | 5 11 12 26 32 35 40 43 42 49 66 69 21 On Entrance 31 | . 9 12 10 31 35 35 44 43 42 51 79 21 Naked Turns . | . . . . . . . . . . . . . Heaviest Build 131 | 11 34 30 107 110 112 116 115 115 120 131 130 . Greatest Support 105 | 20 20 20 69 60 62 46 46 46 46 46 105 3 Greatest Overweight (x) 11 | . 2 1 10 10 10 5 2 2 2 10 11 . Average Overweight (x) 3 | . . 1 3 5 4 3 2 2 2 5 5 . Largest Inventory Capacity 25 | 8 15 15 25 25 25 25 25 25 25 25 25 5 Average Capacity 23 | 7 13 15 24 25 25 25 25 25 25 25 23 5 Most Carried 25 | 3 15 15 25 25 25 25 25 25 25 25 25 5 Average Carried 22 | 1 10 14 23 24 24 23 24 25 23 24 22 5 Final Capacity 25 | 8 15 15 25 25 25 25 25 25 25 25 5 5 Final Carried 25 | 2 15 14 25 24 25 25 25 25 25 25 5 5 Class Distribution -------------------- 17% | Scavenger-Tank 16% | Bothacker-Tank 15% | Bothacker-Skirmisher 9% | Commander-Tank 9% | Bothacker-Gunner 8% | Bothacker-Mutant 6% | Tank 6% | Mutant Dominant Class ---------------- Mutant | -10/Materials Scavenger-Mutant | -10/Subcaves Scavenger-Tank | -8/Materials Bothacker-Gunner | -8/Garrison Bothacker-Tank | -8/Materials Bothacker-Tank | -7/Factory Bothacker-Skirmisher | -7/Lower Caves Bothacker-Skirmisher | -7/Lower Caves Bothacker-Assassin | -6/Factory Commander-Tank | -6/Garrison Bothacker-Mutant | -6/Factory Hacker-Mutant | -6/Lower Caves Resources | -11 -10 -10 -8 -8 -8 -7 -7 -7 -6 -6 -6 -6 ----------- Run | Yrd Mat Sub Mat Gar Mat Fac Low Low Fac Gar Fac Low Matter Collected 7248 | 233 359 . 2059 839 524 578 135 69 21 1497 934 . Remotely . | . . . . . . . . . . . . . Salvage Created 7304 | 118 285 32 2218 966 770 608 . 85 21 791 1410 . Parts 409 | 18 23 7 117 49 39 31 . 11 2 35 77 . Haulers Intercepted 11 | . 1 . 6 . 1 1 . . . . 2 . Recyclers Shooed 5 | 1 . . 4 . . . . . . . . . Parts Field Recycled . | . . . . . . . . . . . . . Retrieved Matter . | . . . . . . . . . . . . . Parts Self-Destructed 10 | . . 4 . . . . . 6 . . . . Prevented . | . . . . . . . . . . . . . Kills | -11 -10 -10 -8 -8 -8 -7 -7 -7 -6 -6 -6 -6 ------- Run | Yrd Mat Sub Mat Gar Mat Fac Low Low Fac Gar Fac Low Combat Hostiles Destroyed 145 | . 10 1 36 30 19 11 . 4 . 14 20 . Melee 3 | . . . . . 1 . . . . 2 . . Guns 78 | . 4 1 31 10 9 10 . . . 1 12 . Cannons 36 | . . . . 14 9 1 . 1 . 6 5 . AOE 28 | . 6 . 5 6 . . . 3 . 5 3 . Classes Destroyed 16 | 2 4 1 5 1 1 1 . . . . 1 . Worker 17 | . 1 . 7 . 3 4 . . . . 2 . Builder 3 | . . . . . . 1 . . . . 2 . Tunneler 7 | 4 1 . 1 . . . . . 1 . . . Hauler 11 | . 1 . 6 . 1 1 . . . . 2 . Recycler 5 | 1 1 . 3 . . . . . . . . . Operator 4 | . . . 3 . . 1 . . . . . . Watcher 2 | . . . 2 . . . . . . . . . Swarmer 39 | . 9 . 10 6 3 2 . 3 . 3 3 . Grunt 55 | . 1 . 15 11 10 1 . . . 7 10 . Brawler 3 | . . . 1 1 . . . . . . 1 . Duelist 6 | . . . . . 2 . . . . 1 3 . Protector 1 | . . . . . . . . . . . 1 . Sentry 28 | . . . 9 9 4 6 . . . . . . Hunter 2 | . . . 1 . . 1 . . . . . . Programmer 10 | . . . . 3 . 1 . 1 . 3 2 . Subdweller 1 | . . 1 . . . . . . . . . . Best Kill Streak 7 | 3 3 1 6 5 4 4 . 3 1 3 7 . Combat Bots Only 7 | . 3 1 4 5 4 3 . 3 . 3 7 . Max Kills in Single Turn 4 | 1 2 1 3 2 1 3 . 3 1 2 4 . Gunslinging 1 | . . . . . . . . . . . 1 . Exploded 3 | . 2 . 3 2 . . . 3 . 2 2 . Melee 1 | . . . . . 1 . . . . 1 . . Uniques/NPCs Destroyed . | . . . . . . . . . . . . . Combat | -11 -10 -10 -8 -8 -8 -7 -7 -7 -6 -6 -6 -6 -------- Run | Yrd Mat Sub Mat Gar Mat Fac Low Low Fac Gar Fac Low Hostile Shots Fired 1182 | . 47 15 171 166 113 276 . 17 9 121 230 17 Missed 358 | . 12 4 40 40 33 102 . 6 2 37 71 11 Hits 824 | . 35 11 131 126 80 174 . 11 7 84 159 6 Melee 20 | . . . 3 . . . . . . . 17 . Projectile 804 | . 35 11 128 126 80 174 . 11 7 84 142 6 AOE 3 | . 3 . . . . . . . . . . . Critical Strikes 28 | . . . 9 7 2 . . . . 3 7 . Damage Taken 12336 | . 543 221 1880 1978 1242 1297 . 154 26 1533 3376 86 Core 1726 | . 142 18 119 224 117 206 . 46 1 145 622 86 Absorbed by Shields 428 | . . . . . . 230 . . 28 123 47 . Reduced by Siege Mode 44 | . . . . . . . . . . . 44 . Ignored by Resistances 71 | . . . . . . 15 . 6 . 32 18 . Core Remaining (%) 54 | 100 . 36 . . 16 . . 64 . . . . Volleys Fired 568 | 19 35 3 135 58 60 49 . 3 1 131 74 . Largest 3 | 2 2 2 3 3 3 3 . 3 1 3 3 . Hottest 242 | 60 70 46 115 180 180 158 . 170 5 242 190 . Shots Fired 1261 | 38 65 6 397 150 141 96 . 9 1 190 168 . Gun 881 | 38 59 6 389 66 96 66 . . . 48 113 . Cannon 280 | . . . . 77 45 28 . 8 . 80 42 . Launcher 44 | . 6 . 8 7 . 2 . 1 . 17 3 . Special 56 | . . . . . . . . . 1 45 10 . Kinetic 791 | 19 49 6 353 80 85 37 . 3 . 46 113 . Thermal 308 | 19 10 . 36 63 56 57 . 5 . 62 . . Explosive 31 | . 6 . 8 7 . 2 . 1 . 7 . . Electromagnetic 75 | . . . . . . . . . . 30 45 . Robot Hit Streak 47 | 5 9 4 20 10 21 14 . 3 4 40 47 . Robot Miss Streak 6 | 3 4 1 6 5 5 4 . 4 . 5 2 . Penetration Max . | . . . . . . . . . . . . . Secondary Targets 9 | . 1 . 4 . 1 . . . . . 3 . Max Gunslinging Chain 1 | . 1 . 1 . 1 . . . . . 1 . Shots Hit Robots 782 | 22 37 5 215 82 98 74 . 3 2 113 131 . Core Hits 375 | 8 19 2 98 56 40 49 . 4 1 43 55 . Critical Kills . | . . . . . . . . . . . . . Critical Parts Destroyed . | . . . . . . . . . . . . . Critical Strikes 9 | . . . 5 2 . 1 . . . 1 . . Burn 6 | . . . 3 2 . 1 . . . . . . Destroy 2 | . . . 2 . . . . . . . . . Blast 1 | . . . . . . . . . . 1 . . Melee Attacks 28 | . . . . . 4 5 . . 2 9 8 . Impact . | . . . . . . . . . . . . . Slashing 10 | . . . . . 4 . . . . . 6 . Piercing 13 | . . . . . . . . . 2 9 2 . Sneak Attacks 3 | . . . . . 1 . . . 1 . 1 . Combat Hostiles . | . . . . . . . . . . . . . Follow-up Attacks . | . . . . . . . . . . . . . Damage Inflicted 18476 | 234 805 78 4011 2932 2172 1956 . 253 52 2317 3666 . Guns 9851 | 234 494 78 3438 705 1302 1207 . . . 525 1868 . Cannons 4590 | . . . . 1227 782 536 . 65 . 912 1068 . Explosions 3717 | . 311 . 551 1000 . 213 . 188 . 783 671 . Melee 293 | . . . . . 88 . . . 52 97 56 . Ramming 25 | . . . 22 . . . . . . . 3 . Kinetic 9323 | 72 442 78 3027 1069 1428 679 . 33 . 627 1868 . Thermal 4547 | 162 52 . 411 863 656 1064 . 32 . 739 568 . Explosive 2759 | . 311 . 551 1000 . 213 . 188 . 496 . . Electromagnetic 1529 | . . . . . . . . . . 358 1171 . Impact . | . . . . . . . . . . . . . Slashing 88 | . . . . . 88 . . . . . . . Piercing 205 | . . . . . . . . . 52 97 56 . Highest Corruption 5 | . . . 4 5 5 1 1 1 . 1 4 4 Average Corruption 2 | . . . 4 4 5 1 1 1 . 1 2 4 Corruption Purged . | . . . . . . . . . . . . . Corruption Blocked . | . . . . . . . . . . . . . Effects 166 | . . . 42 52 27 8 5 2 . 3 26 1 Message Errors 39 | . . . 12 11 6 2 . . . 1 7 . Matter Fused 39 | . . . 9 11 9 2 1 . . 1 5 1 Heat Flow Errors 14 | . . . 4 5 2 . . . . . 3 . Energy Discharges 20 | . . . 5 8 1 1 2 1 . . 2 . Parts Rejected 2 | . . . . 1 . . . . . . 1 . Parts Fused 4 | . . . 1 1 2 . . . . . . . Data Loss (minor) 21 | . . . 5 7 1 2 1 1 . 1 3 . Data Loss (major) 10 | . . . 1 4 1 1 1 . . . 2 . Misfires 5 | . . . 3 1 1 . . . . . . . Alerts 3 | . . . 1 . 1 . . . . . 1 . Weapon Failures 9 | . . . 1 3 3 . . . . . 2 . Overload Shots . | . . . . . . . . . . . . . Overflow Damage 190 | . 40 . 11 5 5 57 . . . 35 37 . Projectiles 70 | . . . . 5 5 40 . . . . 20 . Explosions 98 | . 40 . 11 . . 17 . . . 13 17 . Melee 22 | . . . . . . . . . . 22 . . Knockbacks 17 | . . . . 6 7 . . . . 4 . . Impact . | . . . . . . . . . . . . . Kinetic 15 | . . . . 5 6 . . . . 4 . . Secondary 2 | . . . . 1 1 . . . . . . . Self-Inflicted Damage 267 | . 44 . 22 96 . . . . . 104 1 . Shots 11 | . 2 . 1 4 . . . . . 4 . . Rammed 2 | . . . 1 . . . . . . . 1 . Targets Rammed 2 | . . . 1 . . . . . . . 1 . Kicked . | . . . . . . . . . . . . . Crushed . | . . . . . . . . . . . . . Highest Temperature 512 | 60 40 . 433 393 512 168 . 210 . 446 366 . Average Temperature 110 | 30 19 . 85 124 184 46 . 90 . 126 107 . Received Heat Transfer 3731 | . 75 66 855 819 666 318 . . 10 285 637 . Effects 30 | . . . 1 5 17 . . . . 4 3 . Shutdowns 8 | . . . . . 6 . . . . 1 1 . Energy Bleed 7 | . . . . 1 3 . . . . 1 2 . Interference 7 | . . . . 4 3 . . . . . . . Short Circuit 3 | . . . 1 . 1 . . . . 1 . . Damage (minor) 2 | . . . . . 1 . . . . 1 . . Damage (major) 3 | . . . . . 3 . . . . . . . Siege Activations 2 | . . . . . . . . . . 1 1 . Total Turns 65 | . . . . . . . . . . 21 44 . Longest Duration 44 | . . . . . . . . . . 21 44 . Martial Activations . | . . . . . . . . . . . . . Shielding Activations . | . . . . . . . . . . . . . Robots Disrupted . | . . . . . . . . . . . . . Combat Hostiles . | . . . . . . . . . . . . . Robots Corrupted 2 | . . . . . . . . . . . 2 . Combat Hostiles . | . . . . . . . . . . . . . Parts Fried 4 | . . . . . . . . . . . 4 . Impact Corruptions . | . . . . . . . . . . . . . Robots Melted . | . . . . . . . . . . . . . Combat Hostiles . | . . . . . . . . . . . . . Parts Melted 6 | . . . . . 1 2 . . . 3 . . Heat Transferred 8018 | 375 125 . 999 1516 1221 1986 . 37 . 1309 450 . Parts Sabotaged . | . . . . . . . . . . . . . Parts Stolen . | . . . . . . . . . . . . . Parts Stripped . | . . . . . . . . . . . . . Power Chain Reactions 2 | . . . . . . . . . . . 2 . Alert | -11 -10 -10 -8 -8 -8 -7 -7 -7 -6 -6 -6 -6 ------- Run | Yrd Mat Sub Mat Gar Mat Fac Low Low Fac Gar Fac Low Maximum Alert Level 5 | . . . 1 4 3 1 . . . 5 4 . Low Security (%) 26 | 100 100 . 43 . . 82 . . 100 9 . . Level 1 23 | . . . 56 14 . 17 . . . 30 . . Level 2 14 | . . . . 26 81 . . . . 11 . . Level 3 12 | . . . . 33 18 . . . . 9 22 . Level 4 16 | . . . . 25 . . . . . 8 77 . Level 5 6 | . . . . . . . . . . 30 . . High Security . | . . . . . . . . . . . . . Max Security . | . . . . . . . . . . . . . Peak Influence 2393 | 10 167 . 364 1418 757 266 . . 30 2393 1466 . Initial 1255 | . . . . 230 690 266 . . 30 . 1255 . Average 648 | 2 85 . 226 810 623 161 . . 6 968 1264 . Influence Increases 7863 | 25 352 . 1232 1288 543 371 . 115 6 2753 1163 15 Destroy 0b10 Robot/C 3620 | . 200 . 720 600 380 220 . 80 . 780 640 . Destroy 0b10 Robot/NC 275 | 25 20 . 110 . 20 35 . . 5 10 50 . Destroy Leader 586 | . 42 . 196 30 92 62 . 20 . 20 124 . Allied During Kill 565 | . . . . . 4 . . . . 489 72 . Successful Hack 158 | . 26 . 17 21 30 8 . . . 30 26 . Disable Machine 165 | . 15 . 45 . . 15 . . . 15 75 . Anti-Garrison Action 1700 | . . . . 550 . . . . . 1150 . . Destroy Structure 344 | . 34 . 54 72 17 16 . . 1 124 26 . Lose Combat Pursuer 450 | . 15 . 90 15 . 15 . 15 . 135 150 15 Influence Decreases 6957 | 25 346 6 878 224 1376 859 97 66 55 360 2093 572 Entered New Map 2911 | . . 4 . 124 728 319 37 . 19 . 1138 542 Time Decay 2626 | 25 336 2 638 . 458 410 60 66 36 . 565 30 Lost Part 560 | . 10 . 90 100 20 70 . . . 100 170 . Lost Ally 560 | . . . . . 20 60 . . . 260 220 . Purge Threat 300 | . . . 150 . 150 . . . . . . . Squads Dispatched 30 | . 1 . 5 . 1 7 . . . . 16 . Investigation 5 | . 1 . 1 . . 2 . . . . 1 . Extermination 4 | . . . . . . 1 . . . . 3 . Reinforcement 12 | . . . 3 . 1 1 . . . . 7 . Assault 5 | . . . . . . . . . . . 5 . Garrison 4 | . . . 1 . . 3 . . . . . . Intercept . | . . . . . . . . . . . . . Searches Triggered . | . . . . . . . . . . . . . Construction Impeded 3 | . . . . . 1 . . . . . 2 . Haulers Reinforced 1 | . . . . . . . . . . . 1 . Active Scanning Responses . | . . . . . . . . . . . . . Cargo Convoy Interrupts 1 | . . . . . . . . . . . 1 . Alert ID Control Effect 11 | . . . . . . . . . . 8 3 . Stealth | -11 -10 -10 -8 -8 -8 -7 -7 -7 -6 -6 -6 -6 --------- Run | Yrd Mat Sub Mat Gar Mat Fac Low Low Fac Gar Fac Low Distress Signals 12 | . . . 6 . 1 1 . . . . 4 . Communications Jammed . | . . . . . . . . . . . . . Distress Signals . | . . . . . . . . . . . . . Times Spotted 290 | . 17 2 76 32 28 20 . 5 1 45 59 5 Peak Tracking Total 8 | . 5 2 6 6 5 4 . 4 1 6 8 4 Tactical Retreats 21 | . 2 . 4 1 . 1 . 1 . 5 6 1 Traps | -11 -10 -10 -8 -8 -8 -7 -7 -7 -6 -6 -6 -6 ------- Run | Yrd Mat Sub Mat Gar Mat Fac Low Low Fac Gar Fac Low Traps Triggered 26 | . 1 . 1 10 . 1 . . . 12 1 . Indirectly . | . . . . . . . . . . . . . Trap Hack Attempts . | . . . . . . . . . . . . . Triggered . | . . . . . . . . . . . . . Disarmed . | . . . . . . . . . . . . . Reprogrammed . | . . . . . . . . . . . . . Reused . | . . . . . . . . . . . . . Traps Extracted . | . . . . . . . . . . . . . Installed . | . . . . . . . . . . . . . Triggered . | . . . . . . . . . . . . . Machines | -11 -10 -10 -8 -8 -8 -7 -7 -7 -6 -6 -6 -6 ---------- Run | Yrd Mat Sub Mat Gar Mat Fac Low Low Fac Gar Fac Low Machines Disabled 22 | . 1 . 3 6 . 1 . . . 6 5 . Max in Single Turn 2 | . 1 . 1 2 . 1 . . . 1 1 . Garrison Access 1 | . . . . . . . . . . . 1 . Garrison Relay 9 | . . . . 4 . . . . . 5 . . Phase Generator 1 | . . . . 1 . . . . . . . . Machines Repaired . | . . . . . . . . . . . . . Machines Dismantled . | . . . . . . . . . . . . . Machines Sabotaged . | . . . . . . . . . . . . . Overloaded Fab Kills . | . . . . . . . . . . . . . Hacking | -11 -10 -10 -8 -8 -8 -7 -7 -7 -6 -6 -6 -6 --------- Run | Yrd Mat Sub Mat Gar Mat Fac Low Low Fac Gar Fac Low Machines Accessed 42 | . 4 . 10 4 4 6 1 1 2 3 7 . Terminals 33 | . 4 . 9 4 4 2 . 1 1 3 5 . Fabricators 3 | . . . . . . 2 . . . . 1 . Repair Stations . | . . . . . . . . . . . . . Recycling Units . | . . . . . . . . . . . . . Scanalyzers 2 | . . . . . . 1 . . . . 1 . Garrison Access 3 | . . . 1 . . 1 . . 1 . . . Total Hacks 104 | . 11 . 37 6 17 12 1 1 3 3 13 . Successful 51 | . 5 . 15 3 11 8 1 1 1 3 3 . Failed 53 | . 6 . 22 3 6 4 . . 2 . 10 . Catastrophic 10 | . 3 . 3 . 1 3 . . . . . . Database Lockouts . | . . . . . . . . . . . . . Manual 73 | . 11 . 35 . 15 5 . . 2 . 5 . Terminals 90 | . 11 . 36 6 17 4 . 1 2 3 10 . Fabricators 6 | . . . . . . 4 . . . . 2 . Repair Stations . | . . . . . . . . . . . . . Recycling Units . | . . . . . . . . . . . . . Scanalyzers 3 | . . . . . . 2 . . . . 1 . Garrison Access 4 | . . . 1 . . 2 . . 1 . . . Terminal Hacks 22 | . 2 . 4 3 5 1 1 1 . 3 2 . Record 2 | . . . . . 1 . . 1 . . . . Part Schematic 2 | . 1 . 1 . . . . . . . . . Prototype ID Bank 1 | . . . . . . . . . . . 1 . Open Door 3 | . . . . 1 . . 1 . . 1 . . Branch Access Points 2 | . . . . . . 1 . . . . 1 . Emergency Access Points 1 | . . . . . . . . . . 1 . . Machine Index 1 | . . . . . 1 . . . . . . . Terminal Index 3 | . 1 . 1 . 1 . . . . . . . Unreport Threat 2 | . . . 1 . 1 . . . . . . . Recall Reinforcements 1 | . . . 1 . . . . . . . . . Registered Components 1 | . . . . . 1 . . . . . . . Garrison Registry 1 | . . . . 1 . . . . . . . . Patrol Navigation 2 | . . . . 1 . . . . . 1 . . Fabricator Hacks 4 | . . . . . . 4 . . . . . . Load Schematic 2 | . . . . . . 2 . . . . . . Build 2 | . . . . . . 2 . . . . . . Repair Station Hacks . | . . . . . . . . . . . . . Recycling Unit Hacks . | . . . . . . . . . . . . . Scanalyzer 2 | . . . . . . 2 . . . . . . Insert Component 1 | . . . . . . 1 . . . . . . Analyze 1 | . . . . . . 1 . . . . . . Garrison Access Hacks 2 | . . . 1 . . . . . 1 . . . Unlock Access 2 | . . . 1 . . . . . 1 . . . Unauthorized Hacks 21 | . 3 . 10 . 6 1 . . . . 1 . Terminals 21 | . 3 . 10 . 6 1 . . . . 1 . Track 3 | . . . 1 . 2 . . . . . . . Botnet 17 | . 3 . 8 . 4 1 . . . . 1 . Operators 1 | . . . 1 . . . . . . . . . Fabricators . | . . . . . . . . . . . . . Repair Stations . | . . . . . . . . . . . . . Recycling Units . | . . . . . . . . . . . . . Scanalyzers . | . . . . . . . . . . . . . Garrison Access . | . . . . . . . . . . . . . Data Cores Recovered 1 | . . . . . . . . . . . 1 . Used . | . . . . . . . . . . . . . Hacking Detections 34 | . 4 . 9 3 3 6 . 1 1 . 7 . Full Trace Events 2 | . . . . . . 2 . . . . . . Feedback Events . | . . . . . . . . . . . . . Feedback Blocked . | . . . . . . . . . . . . . Robot Schematics Acquired . | . . . . . . . . . . . . . Robots Built . | . . . . . . . . . . . . . Authchips . | . . . . . . . . . . . . . Time . | . . . . . . . . . . . . . Total Robot Build Rating . | . . . . . . . . . . . . . Part Schematics Acquired 3 | . 1 . 1 . . 1 . . . . . . Parts Built 4 | . . . . . . 4 . . . . . . Authchips . | . . . . . . . . . . . . . Time 93 | . . . . . . 93 . . . . . . Total Part Build Rating 8 | . . . . . . 8 . . . . . . Parts Repaired . | . . . . . . . . . . . . . Time . | . . . . . . . . . . . . . Parts Recycled . | . . . . . . . . . . . . . Recycled Matter . | . . . . . . . . . . . . . Retrieved Matter . | . . . . . . . . . . . . . Retrieved Components . | . . . . . . . . . . . . . Parts Scanalyzed 1 | . . . . . . 1 . . . . . . Part Schematics Acquired 1 | . . . . . . 1 . . . . . . Parts Damaged . | . . . . . . . . . . . . . Bothacking | -11 -10 -10 -8 -8 -8 -7 -7 -7 -6 -6 -6 -6 ------------ Run | Yrd Mat Sub Mat Gar Mat Fac Low Low Fac Gar Fac Low Used RIF Installer 2 | . . . . 1 . . . . . 1 . . Alert ID Control 1 | . . . . . . . . . . 1 . . Robots Hacked 19 | . . . . . . 4 . . 1 7 7 . Non-combat . | . . . . . . . . . . . . . Combat 19 | . . . . . . 4 . . 1 7 7 . Robot Hacks Applied 21 | . . . . . . 4 . . 1 8 8 . parse_system 3 | . . . . . . . . . . 2 1 . scatter_targeting 1 | . . . . . . . . . . . 1 . spike_heat 1 | . . . . . . 1 . . . . . . streamctrl_high 7 | . . . . . . 3 . . . 1 3 . formatsys_high 9 | . . . . . . . . . 1 5 3 . Relay Couplers Released 38 | . . . . 16 . . . . . 21 1 . Machine Destruction 38 | . . . . 16 . . . . . 21 1 . Attached 13 | . . . . 3 . 1 . . 1 3 5 . Fabnet Peak Effective % . | . . . . . . . . . . . . . Robots Rewired 19 | . . . . . . . . . . 19 . . Allies Hacked . | . . . . . . . . . . . . . Hacks Repelled . | . . . . . . . . . . . . . Allies | -11 -10 -10 -8 -8 -8 -7 -7 -7 -6 -6 -6 -6 -------- Run | Yrd Mat Sub Mat Gar Mat Fac Low Low Fac Gar Fac Low Total Allies 36 | . . . . 1 . 3 . . 1 25 6 . Largest Group 21 | . . . . 1 1 1 . . 1 21 6 . Highest-Rated Group 658 | . . . . 20 20 16 . . 32 658 179 . Highest-Rated Ally 85 | . . . . 20 20 16 . . 32 46 85 . Total Orders 5 | . . . . . . . . . 2 2 1 . STAY 2 | . . . . . . . . . 1 . 1 . ROAM 1 | . . . . . . . . . . 1 . . FOLLOW 1 | . . . . . . . . . 1 . . . GUARD 1 | . . . . . . . . . . 1 . . Ally Attacks 244 | . . . . . 3 4 . . . 156 81 . Total Damage 8541 | . . . . . 85 42 . . . 5604 2810 . Kills 56 | . . . . . . . . . . 36 20 . Allies Corrupted . | . . . . . . . . . . . . . Allies Melted 1 | . . . . . . 1 . . . . . . Intel | -11 -10 -10 -8 -8 -8 -7 -7 -7 -6 -6 -6 -6 ------- Run | Yrd Mat Sub Mat Gar Mat Fac Low Low Fac Gar Fac Low Active Infowar (turns) 5212 | 26 626 80 888 . . 560 1590 413 152 . 814 63 Optics 94 | . . . . . . . . . . . 31 63 Sensors 2620 | . . . . . . 560 1500 411 149 . . . Terrain 4550 | 26 626 80 888 . . . 1588 411 148 . 783 . Robot Analysis Total . | . . . . . . . . . . . . . Derelict Logs Recovered 3 | . . . . . . . 1 1 . . . 1 Drone Launches 2 | . . . . . . . . . . . 2 . Drone Recoveries . | . . . . . . . . . . . . . Exploration | -11 -10 -10 -8 -8 -8 -7 -7 -7 -6 -6 -6 -6 ------------- Run | Yrd Mat Sub Mat Gar Mat Fac Low Low Fac Gar Fac Low Turns Passed 15151 | 112 804 82 2861 2193 1141 999 1590 422 184 3007 1693 63 Spaces Moved 7754 | 42 623 67 1496 922 461 540 1019 346 132 1243 737 126 Core 333 | 4 . . . . . . . . . . 203 126 Treads 427 | . . . 10 177 137 . . . . . 103 . Legs . | . . . . . . . . . . . . . Wheels 6994 | 38 623 67 1486 745 324 540 1019 346 132 1243 431 . Hover . | . . . . . . . . . . . . . Flight . | . . . . . . . . . . . . . Fastest Speed 50 | 50 80 95 95 125 145 117 117 117 117 117 50 50 Average Speed 148 | 77 92 95 136 201 187 130 117 117 117 178 179 50 Slowest Speed 480 | 80 110 95 480 320 465 155 117 117 117 240 245 50 Overloaded Moves . | . . . . . . . . . . . . . Propulsion Burnouts . | . . . . . . . . . . . . . Robots Hopped . | . . . . . . . . . . . . . Potential Cave-ins 5 | . 1 . . . . . . . . . 4 . Cave-ins Triggered . | . . . . . . . . . . . . . Exploration Rate (%) 42 | 4 49 7 96 94 41 15 81 37 5 84 23 19 Regions Visited 12 Branch Regions 4 Pre-discovered Areas 1 | . . . . . . . . 1 . . . . Known Exits Taken 4 | . . . 1 . . 1 . . 1 . 1 . Unknown Exits Taken 6 | 1 1 1 . . 1 . 1 1 . . . . Scrap Searched 4 | . . . . . . . 3 1 . . . . Spaces Dug 15 | . . . 6 . 2 . . . 1 . 6 . Terrain Destroyed 269 | . 33 . 46 99 13 12 . 13 1 28 24 . Melee 9 | . . . . . 2 . . . 1 . 6 . Projectile 24 | . . . . 1 11 2 . 2 . 7 1 . AOE 236 | . 33 . 46 98 . 10 . 11 . 21 17 . Terrain Rammed . | . . . . . . . . . . . . . Walls Destroyed . | . . . . . . . . . . . . . Machines Disabled . | . . . . . . . . . . . . . Actions | -11 -10 -10 -8 -8 -8 -7 -7 -7 -6 -6 -6 -6 --------- Run | Yrd Mat Sub Mat Gar Mat Fac Low Low Fac Gar Fac Low Total 10432 | 88 786 78 2013 1147 618 741 1418 353 156 1924 984 126 Wait 1218 | 8 89 7 236 9 28 51 384 . 4 328 74 . Move 7740 | 41 622 66 1495 920 460 539 1018 345 131 1241 736 126 Hop . | . . . . . . . . . . . . . Pick Up 250 | 11 21 . 51 34 25 32 6 . 4 42 24 . Fast Attach . | . . . . . . . . . . . . . Attach 102 | 7 1 1 15 16 6 15 1 . 3 14 23 . Detach 4 | . . . . . 1 1 . . . 1 1 . Swap 191 | . 11 1 55 19 16 20 3 5 8 31 22 . Drop 155 | 2 7 . 25 23 18 21 6 . 2 30 21 . Fire 568 | 19 35 3 135 58 60 49 . 3 1 131 74 . Melee 28 | . . . . . 4 5 . . 2 9 8 . Ram 2 | . . . 1 . . . . . . . 1 . Kick . | . . . . . . . . . . . . . Crush . | . . . . . . . . . . . . . Escape Stasis 115 | . . . . 68 . 8 . . . 39 . . Rewire 59 | . . . . . . . . . 1 58 . . Trap . | . . . . . . . . . . . . . Miscellaneous . | . . . . . . . . . . . . . Route ------- -11/Scrapyard -10/Materials (discovered 3 exits: [*Mat] / [*Min] / [*Sub]) -10/Subcaves -8/Materials (discovered 3 exits: *Fac x2 / Gar) -8/Garrison (discovered 3 exits: *Mat x3) -8/Materials (discovered 2 exits: *Fac x2) -7/Factory (discovered 2 exits: *Low x2) -7/Lower Caves -7/Lower Caves -6/Factory (discovered 2 exits: *Low / Gar) -6/Garrison (discovered 3 exits: *Fac x3) -6/Factory (discovered 2 exits: *Low x2) -6/Lower Caves (discovered 1 exit: Low) History --------- Turn | Location | Event 42 | -11/Scrapyard | Discovered new exit (range 15) 113 | -11/Scrapyard | Entered Materials 208 | -10/Materials | Discovered new exit (range 8) 311 | -10/Materials | Build established: Mutant 455 | -10/Materials | Discovered new exit (range 16) 463 | -10/Materials | Discovered new exit (range 11) 813 | -10/Materials | Derelicts attacked the area 870 | -10/Materials | Core integrity fell below 50% 917 | -10/Materials | Entered Subcaves 918 | -10/Subcaves | Approached by a straggling Scientist 940 | -10/Subcaves | Discovered new exit (range 8) 963 | -10/Subcaves | A Subdweller sparked back to life 963 | -10/Subcaves | A Subdweller sparked back to life 963 | -10/Subcaves | A Subdweller sparked back to life 999 | -10/Subcaves | Entered Materials 999 | -8/Materials | Evolved 4 slots: Propulsion x1, Utility x2, Weapon x1 1013 | -8/Materials | Lost 3 parts (1p1n1w) 1336 | -8/Materials | Build established: Scavenger-Tank 1745 | -8/Materials | Lost 3 parts (1n2w) 2292 | -8/Materials | Lost 3 parts (1n1u1w) 3240 | -8/Materials | Discovered new exit (range 16) 3467 | -8/Materials | Discovered new exit (range 15) 3749 | -8/Materials | Garrison activated, responded to threat 3859 | -8/Materials | Identified exit to Garrison 3860 | -8/Materials | Entered Garrison 3942 | -8/Garrison | Triggered checkpoint 3951 | -8/Garrison | Triggered checkpoint 4034 | -8/Garrison | Lost 3 parts (1p1n1w) 4122 | -8/Garrison | Discovered new exit (range 12) 4182 | -8/Garrison | Triggered checkpoint 4213 | -8/Garrison | Discovered new exit (range 7) 4213 | -8/Garrison | Discovered new exit (range 54) 4213 | -8/Garrison | Discovered new exit (range 92) 4221 | -8/Garrison | Garrison Relay disabled 4296 | -8/Garrison | Build established: Tank 4445 | -8/Garrison | Installed Relay Interface Framework 4558 | -8/Garrison | Triggered checkpoint 4606 | -8/Garrison | Triggered checkpoint 4627 | -8/Garrison | Core integrity fell below 50% 4651 | -8/Garrison | Lost 4 parts (1n1u2w) 4758 | -8/Garrison | Phase Generator disabled 4981 | -8/Garrison | Garrison Relay disabled 5462 | -8/Garrison | Triggered checkpoint 5463 | -8/Garrison | Build established: Bothacker-Gunner 5573 | -8/Garrison | Garrison Relay disabled 5650 | -8/Garrison | Rescued a captive Derelict 5963 | -8/Garrison | Garrison Relay disabled 6053 | -8/Garrison | Entered Materials 6053 | -8/Materials | Accompanied by 1 ally 6352 | -8/Materials | Build established: Bothacker-Tank 6849 | -8/Materials | Discovered new exit (range 3) 6911 | -8/Materials | Build established: Bothacker-Gunner 7062 | -8/Materials | Core integrity fell below 20% 7168 | -8/Materials | Discovered new exit (range 8) 7194 | -8/Materials | Entered Factory 7194 | -7/Factory | Evolved 2 slots: Propulsion x1, Utility x1 7507 | -7/Factory | Build established: Bothacker-Tank 7525 | -7/Factory | Garrison activated, responded to threat 7571 | -7/Factory | Fabricated Arm. Wheel (x2) 7614 | -7/Factory | Lost 5 parts (1p2n1u1w) 7728 | -7/Factory | Lost 3 allies 7943 | -7/Factory | Identified exit to Lower Caves 8156 | -7/Factory | Fabricated Arm. Wheel (x2) 8193 | -7/Factory | Entered Lower Caves 8216 | -7/Lower Caves | Build established: Bothacker-Skirmisher 8269 | -7/Lower Caves | Encountered a Warlord checkpoint 9259 | -7/Lower Caves | Discovered new exit (range 10) 9544 | -7/Lower Caves | Learned Factory stockpile data 9783 | -7/Lower Caves | Entered another Lower Caves area 9845 | -7/Lower Caves | Learned location of Zion (-7) 10024 | -7/Lower Caves | Discovered new exit (range 13) 10205 | -7/Lower Caves | Entered Factory 10205 | -6/Factory | Evolved 2 slots: Utility x2 10257 | -6/Factory | Spotted B-75 Beast 10378 | -6/Factory | Discovered new exit (range 10) 10386 | -6/Factory | Identified exit to Garrison 10389 | -6/Factory | Entered Garrison 10389 | -6/Garrison | Accompanied by 1 ally 10562 | -6/Garrison | Expanded RIF knowledge: Alert ID Control 10681 | -6/Garrison | Triggered checkpoint 10739 | -6/Garrison | Triggered checkpoint 10773 | -6/Garrison | Lost 4 parts (1n2u1w) 10909 | -6/Garrison | Triggered checkpoint 10947 | -6/Garrison | Garrison Relay disabled 11098 | -6/Garrison | Discovered new exit (range 12) 11347 | -6/Garrison | Lost 3 parts (2n1w) 11477 | -6/Garrison | Triggered checkpoint 11497 | -6/Garrison | Garrison Relay disabled 11621 | -6/Garrison | Build established: Commander-Mutant 11665 | -6/Garrison | Triggered checkpoint 11723 | -6/Garrison | Garrison Relay disabled 11828 | -6/Garrison | Discovered new exit (range 12) 11939 | -6/Garrison | Build established: Commander-Tank 11941 | -6/Garrison | Triggered checkpoint 12185 | -6/Garrison | Discovered new exit (range 12) 12217 | -6/Garrison | Triggered checkpoint 12319 | -6/Garrison | Garrison Relay disabled 12339 | -6/Garrison | Garrison Relay disabled 12375 | -6/Garrison | Lost 3 allies 12453 | -6/Garrison | Triggered checkpoint 12677 | -6/Garrison | Lost 4 allies 13003 | -6/Garrison | P-60 Hacker assimilated allied Guardian 5j 13008 | -6/Garrison | P-60 Hacker assimilated allied Fighter 5d 13022 | -6/Garrison | P-60 Hacker assimilated allied Fighter 5e 13083 | -6/Garrison | Lost 3 allies 13334 | -6/Garrison | Build established: Bothacker-Mutant 13396 | -6/Garrison | Entered Factory 13396 | -6/Factory | Accompanied by 6 allies 13910 | -6/Factory | Identified exit to Lower Caves 14045 | -6/Factory | Lost 3 allies 14096 | -6/Factory | First assault squad dispatched 14322 | -6/Factory | Cargo convoy interrupted 14330 | -6/Factory | Lost 4 allies 14358 | -6/Factory | Destroyed 7 combat bots 14402 | -6/Factory | Build established: Bothacker-Tank 14452 | -6/Factory | Spotted B-75 Beast 14471 | -6/Factory | Assimilated Beast 5a with formatsys_high 14932 | -6/Factory | Lost 3 parts (1n1u1w) 14962 | -6/Factory | Core integrity fell below 50% 14989 | -6/Factory | Core integrity fell below 20% 15014 | -6/Factory | Lost 8 parts (1p2n2u3w) 15089 | -6/Factory | Entered Lower Caves 15093 | -6/Lower Caves | Identified exit to Lower Caves 15152 | -6/Lower Caves | Destroyed by S-27 Virus with Autogun Last Messages --------------- 5R. 15043_ Acquired Unknown Device. 15045_ AN3E8H9 P5|0:C:8R1RA9 15049_ K-01 Serf cleans the Power Conduit. 15054_ Identified Imp. Field Recycling Unit. 15055_ Dropped Imp. Field Recycling Unit. 15056_ Acquired Enh. Optical Array. 15060_ Acquired Imp. Particle Charger. 15063_ Acquired 94 matter. 15069_ Dropped Imp. Particle Charger. 15069_ Acquired Hyp. Gauss Rifle. 15085_ System corrupted: Heat flow error (+289). LOCATION=LOWER CAVES GOAL=ESCAPE 15093_ Acquired derelict log, extracted data. Loading 1 Lower Caves exit... 15104_ 0R-WUP(k) breaks down the debris. 15113_ 97-AWM(k) breaks down the debris. 15117_ System corrupted: Matter fused (-7). 15119_ 0R-WUP(k) breaks down the debris. Map ----- +----------------------------------------------------+ | ????????????????????????###?# #?????###??????? | | ????????????????????????# ### ##???# #??????? | | ??????????????########### ### #### #??????? | | ???????##### # #??#### ### ### | | #?????## # | | ??# ##### #??????# # | | ??# ## ??????## #??????# ## | | ??????### ?????????# ####???# #??? | | ????????# ???????????## #??## #????? | | ?????? ??????????????# #### ##?????? | | ???? ???????????????## ### ###?????? | | ?? ????????????####?# ##### ### ##?????? | | ?# ?????????????## ### ## ####?## #?????? | | ???????????????## ## ##???## ##????? | | ??????????????## #????## ####?? | | ??????????????# ### #?????# ### | | ??????????????# ##?### #####?# # | | ??????????????# #????## #### | | ??????????????## #?????##### ### | | ???????????????## #???####### ## ## | | ????????????????# #### ## ## | | ????????????????# ## ## # | | ????????????????# #### ## | | ????????????????## ##ss #??## ###### | | ?????????????????#####s ###???####### | | ???????????????????###s @ ##????????# | | ??????????????????## ###?????????# | | ??????????????????# #???????????# ## ## | | ??????????????????# #???????????#??## #### | | ??????????????????## #????????????### ### | | ???????????????????### ##???????????## | | ?????????????????????# #????????????# | | ????????????????????? #??????????# ## | | ????????????????????# #?????????# #?## | | ????????????????????### ##????????# ???# ### | | ??????????????????????######?????????####????###?? | | ?????????????????????????????????????????????????? | | ?????????????????????????????????????????????????? | | ?????????????????????????????????????????????????? | | ?????????????????????????????????????????????????? | | ?????????????????????????????????????????????????? | | ?????????????????????????????????????????????????? | | ?????????????????????????????????????????????????? | | ?????????????????????????????????????????????????? | | ?????????????????????????????????????????????????? | | ?????????????????????????????????????????????????? | | ?????????????????????????????????????????????????? | | ?????????????????????????????????????????????????? | | ?????????????????????????????????????????????????? | | ?????????????????????????????????????????????????? | +----------------------------------------------------+ Best States ------------- Heat Dissipation 64 Coolant Potential 65 Energy Generation 18 Energy Capacity 310 Matter Stores 300 Matter Capacity 300 Sight Range 22 Robot Scan Range 15 Terrain Scan Range 16 Terrain Scan Density 185 Armor Coverage 525 Resistance: TH 10 Resistance: EM 15 Weapon Cycling 20 Evasion (%) 50 Targeting Accuracy 8 Recoil Reduction 3 Salvage Targeting 3 Offensive Hacking 20 Defensive Hacking 20 Relay Coupler Types 3 Relay Coupler Value 59 Authchip Count 1 Item Schematics ----------------- Huge Storage Unit | -10/Materials | Hacked Arm. Wheel | -8/Materials | Hacked Remote Datajack | -7/Factory | Scanalyzed Robot Schematics ------------------ None Fabricated ------------ Arm. Wheel | x2 | -7/Factory Arm. Wheel | x2 | -7/Factory Repaired ---------- Nothing Alien Tech Used ----------------- None Achievements -------------- None Challenges ------------ None Game ------ Seed FactoryLargeSlayer Manual? 0 Play Time 02:57:00 Cumulative 340.7 hours Start 2025.05.18 @ 05:05:05 End 2025.05.19 @ 09:36:27 Sessions 5 Manual Loads 0 Difficulty Rogue Special Mode None Game No. 389 Rogue 389 Adventurer 0 Explorer 0 Win Type - Total 6 Types 3/1/1/1/0/0/0/0/0/0 Lore% 46 Gallery% 66 Achievement% 68 Wizard Run 0 Options --------- Layout 1 ASCII 0 Keyboard 0 Movement Numpad Keybinds 0 Fullscreen 1 Font 32/SmallcapsGlow Map View 50x35 Zoom Use 0% Tactical HUD 1 Map Filters NONE Filters NONE Steam 1 RUN: 5e78bfef-4d04-4864-9378-66c78aef719a